[Event "Kadett-SM 2025"]
[Site "Uppsala, Sweden"]
[Date "2025.07.04"]
[Round "7.2"]
[White "Morell, Oscar"]
[Black "Nodtveidt, Svante"]
[Result "1-0"]
[TimeControl "90 min for 40 move + 30 min with an increment of 30 sec starting move 1"]
[WhiteFideId "1752952"]
[BlackFideId "1774450"]
[WhiteElo "2001"]
[BlackElo "1838"]

1. e4 {[%clk 01:27:14]} {[%emt 00:03:42]} c5 {[%clk 01:30:52]} {[%emt
00:00:11]} 2. Nf3 {[%clk 01:27:33]} {[%emt 00:00:10]} Nc6 {[%clk 01:31:19]}
{[%emt 00:00:05]} 3. d4 {[%clk 01:27:42]} {[%emt 00:00:20]} cxd4 {[%clk
01:31:44]} {[%emt 00:00:05]} 4. Nxd4 {[%clk 01:28:06]} {[%emt 00:00:06]} Nf6
{[%clk 01:32:05]} {[%emt 00:00:09]} 5. Nc3 {[%clk 01:28:20]} {[%emt 00:00:15]}
e5 {[%clk 01:28:56]} {[%emt 00:03:40]} 6. Ndb5 {[%clk 01:27:34]} {[%emt
00:01:15]} d6 {[%clk 01:29:16]} {[%emt 00:00:11]} 7. Nd5 {[%clk 01:26:48]}
{[%emt 00:01:16]} Nxd5 {[%clk 01:29:38]} {[%emt 00:00:09]} 8. exd5 {[%clk
01:27:15]} {[%emt 00:00:01]} Nb8 {[%clk 01:29:43]} {[%emt 00:00:26]} 9. a4
{[%clk 01:25:32]} {[%emt 00:02:13]} Be7 {[%clk 01:25:42]} {[%emt 00:04:31]} 10.
Be2 {[%clk 01:24:17]} {[%emt 00:01:45]} O-O {[%clk 01:26:03]} {[%emt 00:00:09]}
11. O-O {[%clk 01:24:16]} {[%emt 00:00:31]} f5 {[%clk 01:24:16]} {[%emt
00:02:18]} 12. f4 {[%clk 01:02:54]} {[%emt 00:21:52]} a6 {[%clk 01:18:24]}
{[%emt 00:06:22]} 13. Na3 {[%clk 01:01:46]} {[%emt 00:01:38]} e4 {[%clk
01:15:56]} {[%emt 00:02:58]} 14. Nc4 {[%clk 01:00:09]} {[%emt 00:02:07]} Nd7
{[%clk 01:11:51]} {[%emt 00:04:35]} 15. a5 {[%clk 00:50:24]} {[%emt 00:10:17]}
b5 {[%clk 01:05:53]} {[%emt 00:06:28]} 16. axb6 {[%clk 00:46:05]} {[%emt
00:04:49]} Nxb6 {[%clk 01:05:19]} {[%emt 00:01:03]} 17. Na5 {[%clk 00:40:23]}
{[%emt 00:06:12]} Qc7 {[%clk 00:58:18]} {[%emt 00:07:28]} 18. Be3 {[%clk
00:38:25]} {[%emt 00:02:31]} Bf6 {[%clk 00:56:37]} {[%emt 00:02:11]} 19. Ra2
{[%clk 00:35:35]} {[%emt 00:03:20]} Bd7 {[%clk 00:55:00]} {[%emt 00:02:06]} 20.
c4 {[%clk 00:33:29]} {[%emt 00:02:37]} Na4 {[%clk 00:49:10]} {[%emt 00:06:19]}
21. Rxa4 {[%clk 00:31:23]} {[%emt 00:02:37]} Bxa4 {[%clk 00:48:11]} {[%emt
00:01:30]} 22. Qxa4 {[%clk 00:31:51]} {[%emt 00:00:02]} Bxb2 {[%clk 00:47:24]}
{[%emt 00:01:17]} 23. Nc6 {[%clk 00:31:05]} {[%emt 00:01:14]} Bf6 {[%clk
00:43:30]} {[%emt 00:04:25]} 24. g3 {[%clk 00:25:38]} {[%emt 00:05:57]} h6
{[%clk 00:43:31]} {[%emt 00:00:28]} 25. h4 {[%clk 00:24:15]} {[%emt 00:01:53]}
Kh7 {[%clk 00:42:46]} {[%emt 00:01:15]} 26. h5 {[%clk 00:19:02]} {[%emt
00:05:44]} Rg8 {[%clk 00:42:28]} {[%emt 00:00:48]} 27. Kh2 {[%clk 00:16:44]}
{[%emt 00:02:48]} g5 {[%clk 00:39:39]} {[%emt 00:03:17]} 28. hxg6+ {[%clk
00:09:04]} {[%emt 00:08:11]} Rxg6 {[%clk 00:39:58]} {[%emt 00:00:11]} 29. Bh5
{[%clk 00:08:47]} {[%emt 00:00:48]} Rg7 {[%clk 00:18:46]} {[%emt 00:21:42]} 30.
Rg1 {[%clk 00:07:18]} {[%emt 00:02:00]} Qb7 {[%clk 00:18:36]} {[%emt 00:00:39]}
31. Qa3 {[%clk 00:06:25]} {[%emt 00:01:23]} Rag8 {[%clk 00:12:51]} {[%emt
00:06:15]} 32. Bf2 {[%clk 00:04:59]} {[%emt 00:01:55]} Qb2 {[%clk 00:11:54]}
{[%emt 00:01:27]} 33. Qxb2 {[%clk 00:05:01]} {[%emt 00:00:29]} Bxb2 {[%clk
00:12:17]} {[%emt 00:00:07]} 34. Rb1 {[%clk 00:05:11]} {[%emt 00:00:20]} Bc3
{[%clk 00:12:28]} {[%emt 00:00:19]} 35. Rb3 {[%clk 00:03:47]} {[%emt 00:01:54]}
e3 {[%clk 00:07:16]} {[%emt 00:05:42]} 36. Rxc3 {[%clk 00:00:47]} {[%emt
00:03:30]} exf2 {[%clk 00:07:03]} {[%emt 00:00:43]} 37. Kg2 {[%clk 00:00:39]}
{[%emt 00:00:38]} Rxg3+ {[%clk 00:06:58]} {[%emt 00:00:35]} 38. Rxg3 {[%clk
00:00:43]} {[%emt 00:00:26]} Rxg3+ {[%clk 00:06:32]} {[%emt 00:00:56]} 39. Kxf2
{[%clk 00:01:07]} {[%emt 00:00:05]} Rc3 {[%clk 00:05:49]} {[%emt 00:01:13]} 40.
Be2 {[%clk 00:00:54]} {[%emt 00:00:43]} Kg6 {[%clk 00:05:26]} {[%emt 00:00:50]}
41. Ne7+ {[%clk 00:24:27]} {[%emt 00:07:00]} Kf6 {[%clk 00:35:02]} {[%emt
00:00:53]} 42. Nc8 {[%clk 00:18:17]} {[%emt 00:06:40]} a5 {[%clk 00:35:17]}
{[%emt 00:00:15]} 43. Nxd6 {[%clk 00:15:29]} {[%emt 00:03:18]} a4 {[%clk
00:33:57]} {[%emt 00:01:50]} 44. Nb5 {[%clk 00:15:02]} {[%emt 00:00:57]} Rh3
{[%clk 00:33:34]} {[%emt 00:00:52]} 45. Bf3 {[%clk 00:14:15]} {[%emt 00:01:18]}
Rh2+ {[%clk 00:32:58]} {[%emt 00:01:05]} 46. Bg2 {[%clk 00:12:48]} {[%emt
00:01:57]} Rh4 {[%clk 00:33:04]} {[%emt 00:00:23]} 47. Kf3 {[%clk 00:10:16]}
{[%emt 00:03:04]} Rg4 {[%clk 00:33:04]} {[%emt 00:00:30]} 48. c5 {[%clk
00:10:10]} {[%emt 00:00:36]} Rg8 {[%clk 00:31:14]} {[%emt 00:02:20]} 49. c6
{[%clk 00:10:00]} {[%emt 00:00:40]} Ke7 {[%clk 00:30:45]} {[%emt 00:00:59]} 50.
Bh3 {[%clk 00:08:09]} {[%emt 00:02:22]} Rf8 {[%clk 00:27:52]} {[%emt 00:03:22]}
1-0

[Event "Kadett-SM 2025"]
[Site "Uppsala, Sweden"]
[Date "2025.07.04"]
[Round "7.3"]
[White "Dingertz, Filip"]
[Black "Berling, Egil"]
[Result "1/2-1/2"]
[TimeControl "90 min for 40 move + 30 min with an increment of 30 sec starting move 1"]
[WhiteFideId "1757288"]
[BlackFideId "1781197"]
[WhiteElo "2043"]
[BlackElo "2004"]

1. c4 {[%clk 01:30:30]} {[%emt 00:00:29]} e6 {[%clk 01:30:24]} {[%emt
00:00:37]} 2. g3 {[%clk 01:29:54]} {[%emt 00:01:06]} d5 {[%clk 01:30:49]}
{[%emt 00:00:05]} 3. Bg2 {[%clk 01:30:20]} {[%emt 00:00:03]} Nf6 {[%clk
01:31:03]} {[%emt 00:00:16]} 4. Nf3 {[%clk 01:30:45]} {[%emt 00:00:05]} dxc4
{[%clk 01:30:10]} {[%emt 00:01:24]} 5. Qa4+ {[%clk 01:29:09]} {[%emt 00:02:05]}
c6 {[%clk 01:30:22]} {[%emt 00:00:18]} 6. Qxc4 {[%clk 01:29:29]} {[%emt
00:00:11]} b5 {[%clk 01:30:24]} {[%emt 00:00:27]} 7. Qc2 {[%clk 01:29:40]}
{[%emt 00:00:19]} Bb7 {[%clk 01:29:52]} {[%emt 00:01:03]} 8. Nc3 {[%clk
01:20:21]} {[%emt 00:09:48]} Nbd7 {[%clk 01:27:27]} {[%emt 00:02:55]} 9. O-O
{[%clk 01:19:42]} {[%emt 00:01:09]} Be7 {[%clk 01:24:29]} {[%emt 00:03:28]} 10.
d4 {[%clk 01:12:53]} {[%emt 00:07:20]} a6 {[%clk 01:19:22]} {[%emt 00:05:37]}
11. a4 {[%clk 01:01:47]} {[%emt 00:11:36]} Qb6 {[%clk 01:00:12]} {[%emt
00:19:40]} 12. axb5 {[%clk 00:54:22]} {[%emt 00:07:55]} axb5 {[%clk 01:00:15]}
{[%emt 00:00:27]} 13. Rxa8+ {[%clk 00:52:17]} {[%emt 00:02:34]} Bxa8 {[%clk
01:00:34]} {[%emt 00:00:12]} 14. e4 {[%clk 00:42:26]} {[%emt 00:10:21]} c5
{[%clk 00:59:17]} {[%emt 00:01:46]} 15. Bf4 {[%clk 00:40:03]} {[%emt 00:02:54]}
O-O {[%clk 00:54:13]} {[%emt 00:05:32]} 16. e5 {[%clk 00:36:56]} {[%emt
00:03:39]} Nd5 {[%clk 00:53:09]} {[%emt 00:01:33]} 17. Nxd5 {[%clk 00:36:59]}
{[%emt 00:00:28]} Bxd5 {[%clk 00:53:23]} {[%emt 00:00:15]} 18. dxc5 {[%clk
00:32:44]} {[%emt 00:04:46]} Nxc5 {[%clk 00:48:59]} {[%emt 00:04:52]} 19. Be3
{[%clk 00:31:18]} {[%emt 00:01:56]} b4 {[%clk 00:37:31]} {[%emt 00:11:59]} 20.
Rc1 {[%clk 00:30:18]} {[%emt 00:01:30]} Rc8 {[%clk 00:37:14]} {[%emt 00:00:48]}
21. Ng5 {[%clk 00:28:53]} {[%emt 00:01:55]} Bxg5 {[%clk 00:36:35]} {[%emt
00:01:09]} 22. Bxg5 {[%clk 00:29:15]} {[%emt 00:00:07]} Bxg2 {[%clk 00:34:38]}
{[%emt 00:02:28]} 23. Kxg2 {[%clk 00:27:06]} {[%emt 00:02:39]} Qb7+ {[%clk
00:34:20]} {[%emt 00:00:47]} 24. Kg1 {[%clk 00:23:29]} {[%emt 00:04:07]} Rc7
{[%clk 00:34:23]} {[%emt 00:00:28]} 25. Qc4 {[%clk 00:20:35]} {[%emt 00:03:24]}
h6 {[%clk 00:29:52]} {[%emt 00:05:00]} 26. Bd8 {[%clk 00:12:39]} {[%emt
00:08:26]} Rd7 {[%clk 00:29:27]} {[%emt 00:00:55]} 27. Ba5 {[%clk 00:12:57]}
{[%emt 00:00:13]} Nd3 {[%clk 00:28:20]} {[%emt 00:01:36]} 28. Qc8+ {[%clk
00:07:02]} {[%emt 00:06:25]} Qxc8 {[%clk 00:28:31]} {[%emt 00:00:19]} 29. Rxc8+
{[%clk 00:07:28]} {[%emt 00:00:05]} Kh7 {[%clk 00:28:55]} {[%emt 00:00:05]} 30.
Rb8 {[%clk 00:06:53]} {[%emt 00:01:05]} Nxb2 {[%clk 00:27:53]} {[%emt
00:01:33]} 31. Bxb4 {[%clk 00:06:55]} {[%emt 00:00:28]} 1/2-1/2

[Event "Kadett-SM 2025"]
[Site "Uppsala, Sweden"]
[Date "2025.07.04"]
[Round "7.4"]
[White "Prabu, Dananjey"]
[Black "Strand, Sixten"]
[Result "1/2-1/2"]
[TimeControl "90 min for 40 move + 30 min with an increment of 30 sec starting move 1"]
[WhiteFideId "25744992"]
[BlackFideId "1784137"]
[WhiteElo "2047"]
[BlackElo "1981"]

1. b3 {[%clk 01:30:57]} {[%emt 00:00:02]} e5 {[%clk 01:30:44]} {[%emt
00:00:17]} 2. Bb2 {[%clk 01:31:22]} {[%emt 00:00:04]} Nc6 {[%clk 01:31:10]}
{[%emt 00:00:05]} 3. c4 {[%clk 01:31:47]} {[%emt 00:00:05]} Nge7 {[%clk
01:31:36]} {[%emt 00:00:04]} 4. e3 {[%clk 01:32:12]} {[%emt 00:00:05]} d5
{[%clk 01:30:41]} {[%emt 00:01:25]} 5. cxd5 {[%clk 01:32:35]} {[%emt 00:00:07]}
Nxd5 {[%clk 01:30:01]} {[%emt 00:01:10]} 6. d3 {[%clk 01:32:27]} {[%emt
00:00:38]} Bb4+ {[%clk 01:28:22]} {[%emt 00:02:09]} 7. Nd2 {[%clk 01:32:51]}
{[%emt 00:00:06]} Qe7 {[%clk 01:24:38]} {[%emt 00:04:15]} 8. a3 {[%clk
01:31:33]} {[%emt 00:01:48]} Bc3 {[%clk 01:20:08]} {[%emt 00:05:00]} 9. Bxc3
{[%clk 01:30:28]} {[%emt 00:01:35]} Nxc3 {[%clk 01:19:07]} {[%emt 00:01:31]} 10.
Qc2 {[%clk 01:30:53]} {[%emt 00:00:04]} Nd5 {[%clk 01:19:26]} {[%emt 00:00:13]}
11. g3 {[%clk 01:30:03]} {[%emt 00:01:19]} Be6 {[%clk 01:13:43]} {[%emt
00:06:13]} 12. Bg2 {[%clk 01:29:33]} {[%emt 00:00:59]} Rd8 {[%clk 01:11:25]}
{[%emt 00:02:49]} 13. Qb1 {[%clk 00:59:06]} {[%emt 00:30:57]} a5 {[%clk
01:04:13]} {[%emt 00:07:43]} 14. Ngf3 {[%clk 00:51:29]} {[%emt 00:08:05]} O-O
{[%clk 01:01:06]} {[%emt 00:03:37]} 15. O-O {[%clk 00:51:13]} {[%emt 00:00:45]}
f5 {[%clk 00:53:12]} {[%emt 00:08:25]} 16. Qb2 {[%clk 00:43:39]} {[%emt
00:08:03]} Bf7 {[%clk 00:38:05]} {[%emt 00:15:38]} 17. Nc4 {[%clk 00:37:16]}
{[%emt 00:06:52]} Rfe8 {[%clk 00:34:30]} {[%emt 00:04:07]} 18. Rfd1 {[%clk
00:25:32]} {[%emt 00:12:13]} b5 {[%clk 00:29:50]} {[%emt 00:05:11]} 19. Ncd2
{[%clk 00:25:52]} {[%emt 00:00:09]} b4 {[%clk 00:29:55]} {[%emt 00:00:25]} 20.
Nc4 {[%clk 00:20:15]} {[%emt 00:06:07]} Nc3 {[%clk 00:27:50]} {[%emt 00:02:36]}
21. Rd2 {[%clk 00:20:44]} {[%emt 00:00:01]} Bxc4 {[%clk 00:24:25]} {[%emt
00:03:55]} 22. dxc4 {[%clk 00:17:37]} {[%emt 00:03:37]} Rxd2 {[%clk 00:23:40]}
{[%emt 00:01:14]} 23. Nxd2 {[%clk 00:15:07]} {[%emt 00:03:00]} e4 {[%clk
00:23:13]} {[%emt 00:00:57]} 24. axb4 {[%clk 00:12:12]} {[%emt 00:03:26]} axb4
{[%clk 00:23:27]} {[%emt 00:00:16]} 25. Nb1 {[%clk 00:11:19]} {[%emt 00:01:22]}
Qf6 {[%clk 00:16:26]} {[%emt 00:07:32]} 26. Ra6 {[%clk 00:11:39]} {[%emt
00:00:09]} Rd8 {[%clk 00:15:49]} {[%emt 00:01:06]} 27. Nxc3 {[%clk 00:04:31]}
{[%emt 00:07:39]} Qxc3 {[%clk 00:15:23]} {[%emt 00:00:56]} 28. Qe2 {[%clk
00:04:46]} {[%emt 00:00:15]} Ne5 {[%clk 00:14:05]} {[%emt 00:01:49]} 29. h3
{[%clk 00:04:01]} {[%emt 00:01:14]} Qxb3 {[%clk 00:13:10]} {[%emt 00:01:25]} 30.
Ra5 {[%clk 00:01:51]} {[%emt 00:02:41]} Qd1+ {[%clk 00:12:43]} {[%emt
00:00:57]} 31. Bf1 {[%clk 00:02:16]} {[%emt 00:00:04]} Nf3+ {[%clk 00:12:17]}
{[%emt 00:00:56]} 32. Kg2 {[%clk 00:02:45]} {[%emt 00:00:02]} b3 {[%clk
00:12:00]} {[%emt 00:00:46]} 33. Rb5 {[%clk 00:02:33]} {[%emt 00:00:42]} Qb1
{[%clk 00:09:47]} {[%emt 00:02:44]} 34. c5 {[%clk 00:01:43]} {[%emt 00:01:20]}
h6 {[%clk 00:10:05]} {[%emt 00:00:12]} 35. Qc4+ {[%clk 00:01:37]} {[%emt
00:00:36]} Kh7 {[%clk 00:09:38]} {[%emt 00:00:57]} 36. Rxb3 {[%clk 00:01:01]}
{[%emt 00:01:06]} Qe1 {[%clk 00:06:25]} {[%emt 00:03:42]} 37. Qe2 {[%clk
00:01:05]} {[%emt 00:00:27]} Rd2 {[%clk 00:06:31]} {[%emt 00:00:24]} 38. Qxe1
{[%clk 00:01:05]} {[%emt 00:00:29]} Nxe1+ {[%clk 00:06:57]} {[%emt 00:00:04]}
39. Kg1 {[%clk 00:01:10]} {[%emt 00:00:25]} Rc2 {[%clk 00:06:56]} {[%emt
00:00:31]} 40. c6 {[%clk 00:00:33]} {[%emt 00:01:07]} Rxc6 {[%clk 00:06:07]}
{[%emt 00:01:19]} 41. Rb5 {[%clk 00:17:53]} {[%emt 00:13:09]} g6 {[%clk
00:33:42]} {[%emt 00:02:56]} 42. g4 {[%clk 00:16:13]} {[%emt 00:02:10]} Rc1
{[%clk 00:31:41]} {[%emt 00:02:31]} 43. Ra5 {[%clk 00:07:50]} {[%emt 00:08:54]}
Kg7 {[%clk 00:30:30]} {[%emt 00:01:41]} 44. Ra6 {[%clk 00:07:37]} {[%emt
00:00:42]} Nf3+ {[%clk 00:30:15]} {[%emt 00:00:45]} 45. Kg2 {[%clk 00:08:02]}
{[%emt 00:00:05]} Kf7 {[%clk 00:28:34]} {[%emt 00:02:11]} 46. gxf5 {[%clk
00:06:53]} {[%emt 00:01:39]} Nh4+ {[%clk 00:26:01]} {[%emt 00:03:03]} 47. Kg1
{[%clk 00:07:22]} {[%emt 00:00:01]} Nxf5 {[%emt 00:00:14]} 48. Ra4 {[%clk
00:07:01]} {[%emt 00:00:48]} Nd6 {[%clk 00:26:36]} {[%emt 00:00:14]} 49. Kg2
{[%clk 00:04:45]} {[%emt 00:02:46]} Ke6 {[%clk 00:26:16]} {[%emt 00:00:50]} 50.
Be2 {[%clk 00:05:03]} {[%emt 00:00:13]} Ke5 {[%clk 00:25:21]} {[%emt 00:01:24]}
51. f3 {[%clk 00:03:11]} {[%emt 00:02:22]} exf3+ {[%clk 00:23:11]} {[%emt
00:02:41]} 52. Kxf3 {[%clk 00:03:39]} {[%emt 00:00:01]} c5 {[%clk 00:22:30]}
{[%emt 00:01:11]} 53. Bd3 {[%clk 00:04:08]} g5 {[%clk 00:21:29]} {[%emt
00:01:32]} 54. Ra5 {[%clk 00:03:49]} {[%emt 00:00:49]} Ke6 {[%clk 00:21:05]}
{[%emt 00:00:54]} 55. Ra6 {[%clk 00:02:44]} {[%emt 00:01:36]} c4 {[%clk
00:19:29]} {[%emt 00:02:06]} 56. Bh7 {[%clk 00:03:13]} Kd5 {[%clk 00:16:39]}
{[%emt 00:03:20]} 57. Ra5+ {[%clk 00:03:40]} {[%emt 00:00:03]} Kc6 {[%clk
00:15:58]} {[%emt 00:01:12]} 58. Bg6 {[%clk 00:03:39]} {[%emt 00:00:30]} c3
{[%clk 00:14:51]} {[%emt 00:01:37]} 59. Ke2 {[%clk 00:03:49]} {[%emt 00:00:20]}
Rh1 {[%clk 00:11:28]} {[%emt 00:03:51]} 60. Ra3 {[%clk 00:03:46]} {[%emt
00:00:34]} Rh2+ {[%clk 00:10:00]} {[%emt 00:01:59]} 61. Kd3 {[%clk 00:03:33]}
{[%emt 00:00:42]} Rxh3 {[%clk 00:09:35]} {[%emt 00:00:55]} 62. Rxc3+ {[%clk
00:03:55]} {[%emt 00:00:08]} Kd5 {[%clk 00:09:02]} {[%emt 00:01:04]} 63. Ke2
{[%clk 00:04:03]} {[%emt 00:00:21]} Ke5 {[%clk 00:08:22]} {[%emt 00:01:10]} 64.
Rc5+ {[%clk 00:04:18]} {[%emt 00:00:15]} Kf6 {[%clk 00:08:11]} {[%emt
00:00:41]} 65. Bd3 {[%clk 00:04:46]} {[%emt 00:00:02]} g4 {[%clk 00:08:10]}
{[%emt 00:00:31]} 66. Rc6 {[%clk 00:03:44]} {[%emt 00:01:33]} Rh2+ {[%clk
00:07:55]} {[%emt 00:00:44]} 67. Kf1 {[%clk 00:03:39]} {[%emt 00:00:35]} Ke5
{[%clk 00:08:17]} {[%emt 00:00:08]} 68. Rc5+ {[%clk 00:03:50]} {[%emt
00:00:20]} Ke6 {[%clk 00:08:36]} {[%emt 00:00:11]} 69. Be2 {[%clk 00:03:33]}
{[%emt 00:00:46]} Ne4 {[%clk 00:08:40]} {[%emt 00:00:25]} 70. Bxg4+ {[%clk
00:03:35]} {[%emt 00:00:28]} Kd6 {[%clk 00:09:01]} {[%emt 00:00:09]} 71. Ra5
{[%clk 00:03:43]} {[%emt 00:00:23]} Nc5 {[%clk 00:07:14]} {[%emt 00:02:18]} 72.
Bf3 {[%clk 00:03:35]} {[%emt 00:00:36]} Nb3 {[%clk 00:06:38]} {[%emt 00:01:07]}
73. Ra6+ {[%clk 00:02:59]} {[%emt 00:01:06]} Ke5 {[%clk 00:06:00]} {[%emt
00:01:09]} 74. Kg1 {[%clk 00:03:22]} {[%emt 00:00:06]} Rh4 {[%emt 00:01:16]}
1/2-1/2

[Event "Kadett-SM 2025"]
[Site "Uppsala, Sweden"]
[Date "2025.07.04"]
[Round "6.1"]
[White "Nodtveidt, Svante"]
[Black "Dingertz, Filip"]
[Result "1/2-1/2"]
[TimeControl "90 min for 40 move + 30 min with an increment of 30 sec starting move 1"]
[WhiteFideId "1774450"]
[BlackFideId "1757288"]
[WhiteElo "1838"]
[BlackElo "2043"]

1. d4 {[%clk 01:30:51]} {[%emt 00:00:08]} d5 {[%clk 01:30:44]} {[%emt
00:00:16]} 2. c4 {[%clk 01:31:16]} {[%emt 00:00:06]} e6 {[%clk 01:30:07]}
{[%emt 00:01:08]} 3. Nc3 {[%clk 01:31:27]} {[%emt 00:00:18]} Nf6 {[%clk
01:30:31]} {[%emt 00:00:05]} 4. cxd5 {[%clk 01:31:46]} {[%emt 00:00:12]} exd5
{[%clk 01:30:59]} {[%emt 00:00:02]} 5. Bg5 {[%clk 01:32:05]} {[%emt 00:00:11]}
Be7 {[%clk 01:30:36]} {[%emt 00:00:53]} 6. e3 {[%clk 01:32:13]} {[%emt
00:00:22]} c6 {[%clk 01:30:19]} {[%emt 00:00:46]} 7. Bd3 {[%clk 01:32:17]}
{[%emt 00:00:26]} O-O {[%clk 01:30:39]} {[%emt 00:00:10]} 8. Nge2 {[%clk
01:27:54]} {[%emt 00:04:53]} Nbd7 {[%clk 01:30:26]} {[%emt 00:00:44]} 9. Qc2
{[%clk 01:20:40]} {[%emt 00:07:44]} Re8 {[%clk 01:30:00]} {[%emt 00:00:55]} 10.
f3 {[%clk 01:17:09]} {[%emt 00:04:02]} Nf8 {[%clk 01:28:31]} {[%emt 00:01:58]}
11. O-O {[%clk 01:07:33]} {[%emt 00:10:06]} g6 {[%clk 01:24:10]} {[%emt
00:04:51]} 12. Bh4 {[%clk 00:53:45]} {[%emt 00:14:19]} Ne6 {[%clk 01:22:45]}
{[%emt 00:01:54]} 13. a3 {[%clk 00:47:17]} {[%emt 00:06:59]} a5 {[%clk
01:17:51]} {[%emt 00:05:22]} 14. Rab1 {[%clk 00:45:59]} {[%emt 00:01:49]} b6
{[%clk 00:56:36]} {[%emt 00:21:45]} 15. Rfd1 {[%clk 00:40:44]} {[%emt
00:05:45]} Bb7 {[%clk 00:54:49]} {[%emt 00:02:18]} 16. b4 {[%clk 00:40:27]}
{[%emt 00:00:47]} axb4 {[%clk 00:55:13]} {[%emt 00:00:05]} 17. axb4 {[%clk
00:40:50]} {[%emt 00:00:07]} Nd7 {[%clk 00:53:18]} {[%emt 00:02:25]} 18. Bf2
{[%clk 00:37:35]} {[%emt 00:03:45]} Nb8 {[%clk 00:45:56]} {[%emt 00:07:52]} 19.
e4 {[%clk 00:32:01]} {[%emt 00:06:05]} Na6 {[%clk 00:44:18]} {[%emt 00:02:09]}
20. Bxa6 {[%clk 00:30:38]} {[%emt 00:01:53]} Bxa6 {[%clk 00:43:54]} {[%emt
00:00:54]} 21. b5 {[%clk 00:21:08]} {[%emt 00:09:59]} cxb5 {[%clk 00:42:45]}
{[%emt 00:01:39]} 22. Nxd5 {[%clk 00:21:29]} {[%emt 00:00:10]} Bf8 {[%clk
00:38:08]} {[%emt 00:05:06]} 23. Nec3 {[%clk 00:20:27]} {[%emt 00:01:31]} b4
{[%clk 00:35:32]} {[%emt 00:03:06]} 24. Nxb4 {[%clk 00:20:15]} {[%emt
00:00:42]} Bc4 {[%clk 00:34:33]} {[%emt 00:01:30]} 25. Qd2 {[%clk 00:15:55]}
{[%emt 00:04:49]} b5 {[%clk 00:31:33]} {[%emt 00:03:32]} 26. d5 {[%clk
00:13:51]} {[%emt 00:02:33]} Nc7 {[%clk 00:30:10]} {[%emt 00:01:52]} 27. Nc6
{[%clk 00:13:37]} {[%emt 00:00:44]} Qd6 {[%clk 00:29:06]} {[%emt 00:01:33]} 28.
Bg3 {[%clk 00:13:21]} {[%emt 00:00:48]} Qc5+ {[%clk 00:28:49]} {[%emt
00:00:47]} 29. Kh1 {[%clk 00:13:19]} {[%emt 00:00:32]} Na6 {[%clk 00:27:48]}
{[%emt 00:01:31]} 30. Rdc1 {[%clk 00:10:04]} {[%emt 00:03:44]} b4 {[%clk
00:21:45]} {[%emt 00:06:33]} 31. Na2 {[%clk 00:06:42]} {[%emt 00:04:21]} Bxa2
{[%clk 00:12:18]} {[%emt 00:09:57]} 32. Qxa2 {[%clk 00:02:00]} {[%emt
00:05:12]} Qb6 {[%clk 00:12:47]} {[%emt 00:00:02]} 33. Bf2 {[%clk 00:01:30]}
{[%emt 00:00:59]} Qb7 {[%clk 00:12:45]} {[%emt 00:00:32]} 34. Qb3 {[%clk
00:01:07]} {[%emt 00:00:54]} Rec8 {[%clk 00:09:37]} {[%emt 00:03:37]} 35. Be3
{[%clk 00:00:59]} {[%emt 00:00:38]} Nb8 {[%clk 00:08:46]} {[%emt 00:01:21]} 36.
Nd4 {[%clk 00:00:39]} {[%emt 00:00:50]} Nd7 {[%clk 00:08:36]} {[%emt 00:00:40]}
37. Nc6 {[%clk 00:00:51]} {[%emt 00:00:18]} Nb8 {[%clk 00:08:29]} {[%emt
00:00:37]} 38. Nxb8 {[%clk 00:00:56]} {[%emt 00:00:26]} Rxc1+ {[%clk 00:08:27]}
{[%emt 00:00:31]} 39. Bxc1 {[%clk 00:00:56]} {[%emt 00:00:30]} Qxb8 {[%clk
00:08:28]} {[%emt 00:00:29]} 40. Bd2 {[%clk 00:00:59]} {[%emt 00:00:27]} Qb5
{[%clk 00:01:15]} {[%emt 00:07:43]} 41. h3 {[%clk 00:25:43]} {[%emt 00:05:46]}
Qe2 {[%clk 00:30:43]} {[%emt 00:01:02]} 42. Qe3 {[%clk 00:14:40]} {[%emt
00:11:33]} Qc4 {[%clk 00:29:51]} {[%emt 00:01:22]} 43. Qb3 {[%clk 00:14:17]}
{[%emt 00:00:52]} Qe2 {[%clk 00:30:09]} {[%emt 00:00:13]} 44. Qe3 {[%clk
00:14:01]} {[%emt 00:00:47]} Qc4 {[%clk 00:30:06]} {[%emt 00:00:32]} 45. Qb3
{[%clk 00:09:58]} {[%emt 00:04:33]} 1/2-1/2